[Event "*** Titled Tuesday Blitz"]
[Site "Chess.com"]
[Date "2018.05.01"]
[Round "6"]
[White "LastHeroJr"]
[Black "MatthewG-p4p"]
[Result "1-0"]
[WhiteElo "2462"]
[BlackElo "2591"]
[TimeControl "180+2"]
[EndTime "14:19:42 PDT"]
[Termination "LastHeroJr won by checkmate"]

1. e4 {[%clk 0:03:01.9]} 1... e6 {[%clk 0:02:55.2]} 2. d4 {[%clk 0:03:02.6]}
2... d5 {[%clk 0:02:55.6]} 3. Nd2 {[%clk 0:03:04.2]} 3... Be7 {[%clk 0:02:56.5]}
4. Bd3 {[%clk 0:02:56.3]} 4... c5 {[%clk 0:02:56.5]} 5. dxc5 {[%clk 0:02:56.3]}
5... Nf6 {[%clk 0:02:54.5]} 6. Ngf3 {[%clk 0:02:44.7]} 6... dxe4 {[%clk
0:02:53.3]} 7. Nxe4 {[%clk 0:02:45.5]} 7... Nxe4 {[%clk 0:02:54.1]} 8. Bxe4
{[%clk 0:02:47.4]} 8... Qxd1+ {[%clk 0:02:55.5]} 9. Kxd1 {[%clk 0:02:49.3]} 9...
Bxc5 {[%clk 0:02:56.4]} 10. Ke2 {[%clk 0:02:50]} 10... O-O {[%clk 0:02:57.2]}
11. Ne5 {[%clk 0:02:50.6]} 11... f6 {[%clk 0:02:57.4]} 12. Nd3 {[%clk
0:02:51.4]} 12... Be7 {[%clk 0:02:57.8]} 13. Be3 {[%clk 0:02:45.8]} 13... Nc6
{[%clk 0:02:46.8]} 14. Rhd1 {[%clk 0:02:33.1]} 14... e5 {[%clk 0:02:43.2]} 15.
Nc5 {[%clk 0:02:26]} 15... f5 {[%clk 0:02:36]} 16. Bd5+ {[%clk 0:02:25.5]} 16...
Kh8 {[%clk 0:02:36.9]} 17. Bxc6 {[%clk 0:01:57.4]} 17... bxc6 {[%clk 0:02:37]}
18. Nd7 {[%clk 0:01:58.6]} 18... Bxd7 {[%clk 0:01:26.3]} 19. Rxd7 {[%clk
0:02:00.5]} 19... Bf6 {[%clk 0:01:27.7]} 20. Rxa7 {[%clk 0:01:48.7]} 20... Rab8
{[%clk 0:01:26.7]} 21. b3 {[%clk 0:01:45.3]} 21... f4 {[%clk 0:01:26.9]} 22. Bc5
{[%clk 0:01:45.7]} 22... Rfe8 {[%clk 0:01:27.8]} 23. Rd1 {[%clk 0:01:40.2]}
23... e4 {[%clk 0:01:27.5]} 24. Rc7 {[%clk 0:01:35.1]} 24... f3+ {[%clk
0:01:04.7]} 25. gxf3 {[%clk 0:01:35.2]} 25... exf3+ {[%clk 0:01:06]} 26. Kxf3
{[%clk 0:01:37.1]} 26... Be5 {[%clk 0:01:07.4]} 27. Rxc6 {[%clk 0:01:34.8]}
27... Bxh2 {[%clk 0:01:08]} 28. a4 {[%clk 0:01:31.5]} 28... Be5 {[%clk
0:01:01.8]} 29. a5 {[%clk 0:01:29.5]} 29... g5 {[%clk 0:01:02.2]} 30. a6 {[%clk
0:01:28.6]} 30... Rg8 {[%clk 0:01:02.5]} 31. Rd7 {[%clk 0:01:24.7]} 31... g4+
{[%clk 0:01:03.1]} 32. Kg2 {[%clk 0:01:25.8]} 32... g3 {[%clk 0:01:02.6]} 33. f3
{[%clk 0:01:23]} 33... Rg5 {[%clk 0:00:58.7]} 34. a7 {[%clk 0:01:16.1]} 34...
Rbg8 {[%clk 0:00:59.3]} 35. Rh6 {[%clk 0:01:08.3]} 35... Bg7 {[%clk 0:00:59]}
36. Bd4 {[%clk 0:01:05.9]} 36... Bxd4 {[%clk 0:00:59.8]} 37. Rhxh7# {[%clk
0:01:06.8]} 1-0

[Event "*** Titled Tuesday Blitz"]
[Site "Chess.com"]
[Date "2018.05.01"]
[Round "6"]
[White "Angulo07"]
[Black "Alohamora11"]
[Result "1-0"]
[WhiteElo "2293"]
[BlackElo "2118"]
[TimeControl "180+2"]
[EndTime "14:19:42 PDT"]
[Termination "Angulo07 won on time"]

1. d4 {[%clk 0:03:01.9]} 1... Nf6 {[%clk 0:03:00.3]} 2. Bg5 {[%clk 0:03:03.4]}
2... e6 {[%clk 0:02:57.3]} 3. e4 {[%clk 0:03:04.1]} 3... h6 {[%clk 0:02:47.9]}
4. Bxf6 {[%clk 0:03:05.3]} 4... Qxf6 {[%clk 0:02:48.1]} 5. c3 {[%clk 0:03:05.8]}
5... d5 {[%clk 0:02:47.4]} 6. Nd2 {[%clk 0:03:05.6]} 6... c5 {[%clk 0:02:34]} 7.
Ngf3 {[%clk 0:03:06.9]} 7... cxd4 {[%clk 0:02:32.1]} 8. Nxd4 {[%clk 0:03:08.3]}
8... Be7 {[%clk 0:02:20.9]} 9. Bb5+ {[%clk 0:03:05.9]} 9... Nd7 {[%clk 0:02:18]}
10. exd5 {[%clk 0:03:03.5]} 10... exd5 {[%clk 0:02:19.9]} 11. O-O {[%clk
0:03:02.3]} 11... O-O {[%clk 0:02:19.4]} 12. Qh5 {[%clk 0:02:57]} 12... Ne5
{[%clk 0:02:09]} 13. Rfe1 {[%clk 0:02:52.6]} 13... Bd6 {[%clk 0:02:09.7]} 14. h3
{[%clk 0:02:41.9]} 14... a6 {[%clk 0:01:55]} 15. Bf1 {[%clk 0:02:43.4]} 15...
Bd7 {[%clk 0:01:35.4]} 16. N2f3 {[%clk 0:02:38.8]} 16... Rae8 {[%clk 0:01:31.5]}
17. Nxe5 {[%clk 0:02:35.4]} 17... Bxe5 {[%clk 0:01:20.7]} 18. Nf3 {[%clk
0:02:32.2]} 18... Bb8 {[%clk 0:00:36.1]} 19. Qxd5 {[%clk 0:02:20.4]} 19... Bc6
{[%clk 0:00:36.7]} 20. Qd4 {[%clk 0:02:21.8]} 20... Qf5 {[%clk 0:00:18.8]} 21.
Bd3 {[%clk 0:02:23.1]} 21... Qh5 {[%clk 0:00:18.3]} 22. Be4 {[%clk 0:02:20.7]}
22... Bd7 {[%clk 0:00:15.1]} 23. Qxd7 {[%clk 0:02:15.7]} 23... Re6 {[%clk
0:00:10.6]} 24. Qxb7 {[%clk 0:02:06.8]} 24... Bf4 {[%clk 0:00:07.1]} 25. Rad1
{[%clk 0:01:59]} 25... Kh8 {[%clk 0:00:08]} 26. Bc2 {[%clk 0:01:54.6]} 26... Rf6
{[%clk 0:00:06.3]} 27. Qd5 {[%clk 0:01:43.9]} 27... g5 {[%clk 0:00:03.1]} 28.
Ne5 {[%clk 0:01:36.6]} 1-0

[Event "*** Titled Tuesday Blitz"]
[Site "Chess.com"]
[Date "2018.05.01"]
[Round "6"]
[White "dmosesov"]
[Black "plumalka"]
[Result "0-1"]
[WhiteElo "2165"]
[BlackElo "2048"]
[TimeControl "180+2"]
[EndTime "14:19:48 PDT"]
[Termination "plumalka won by checkmate"]

1. e4 {[%clk 0:03:01.9]} 1... c5 {[%clk 0:02:59.7]} 2. d4 {[%clk 0:02:58.7]}
2... cxd4 {[%clk 0:02:59.9]} 3. c3 {[%clk 0:02:59.2]} 3... dxc3 {[%clk
0:03:01.8]} 4. Nxc3 {[%clk 0:03:00.5]} 4... e6 {[%clk 0:03:02.3]} 5. Nf3 {[%clk
0:03:01.3]} 5... Ne7 {[%clk 0:03:03]} 6. Bc4 {[%clk 0:02:56.5]} 6... Ng6 {[%clk
0:03:03.7]} 7. h4 {[%clk 0:02:52.7]} 7... Nc6 {[%clk 0:03:00.9]} 8. h5 {[%clk
0:02:28.6]} 8... Nge5 {[%clk 0:03:00.5]} 9. Nxe5 {[%clk 0:02:29.4]} 9... Nxe5
{[%clk 0:02:59.9]} 10. Be2 {[%clk 0:02:31.3]} 10... Be7 {[%clk 0:02:51.5]} 11.
Be3 {[%clk 0:02:26.3]} 11... h6 {[%clk 0:02:51.1]} 12. O-O {[%clk 0:02:15]}
12... d6 {[%clk 0:02:43.5]} 13. Qd2 {[%clk 0:02:14.9]} 13... Bd7 {[%clk
0:02:42.3]} 14. Rfd1 {[%clk 0:02:15]} 14... O-O {[%clk 0:02:39]} 15. Rac1 {[%clk
0:02:07.2]} 15... Rc8 {[%clk 0:02:38.5]} 16. Bxa7 {[%clk 0:01:39.4]} 16... Nc4
{[%clk 0:02:25.5]} 17. Bxc4 {[%clk 0:01:39.5]} 17... Rxc4 {[%clk 0:02:27.4]} 18.
Be3 {[%clk 0:01:37.3]} 18... b5 {[%clk 0:02:23.8]} 19. b3 {[%clk 0:01:31.9]}
19... Rc8 {[%clk 0:02:22.8]} 20. Ne2 {[%clk 0:01:32.3]} 20... Rxc1 {[%clk
0:02:17.9]} 21. Rxc1 {[%clk 0:01:34.2]} 21... Qa8 {[%clk 0:02:19]} 22. Rc7
{[%clk 0:01:27.9]} 22... Rd8 {[%clk 0:02:16.8]} 23. Ng3 {[%clk 0:01:23.9]} 23...
Bf8 {[%clk 0:02:07.5]} 24. Qe2 {[%clk 0:01:04.6]} 24... Be8 {[%clk 0:02:03.9]}
25. Qg4 {[%clk 0:00:55.2]} 25... Kh8 {[%clk 0:01:55.4]} 26. Rc2 {[%clk
0:00:40.7]} 26... d5 {[%clk 0:01:54]} 27. exd5 {[%clk 0:00:39.6]} 27... Rxd5
{[%clk 0:01:52.2]} 28. Ne4 {[%clk 0:00:34.1]} 28... Qd8 {[%clk 0:01:50.4]} 29.
Rd2 {[%clk 0:00:28.2]} 29... f5 {[%clk 0:01:47.7]} 30. Qe2 {[%clk 0:00:12.8]}
30... fxe4 {[%clk 0:01:47.2]} 31. Rc2 {[%clk 0:00:11.7]} 31... Rd1+ {[%clk
0:01:45.8]} 32. Kh2 {[%clk 0:00:07.7]} 32... Qh4# {[%clk 0:01:46.6]} 0-1

[Event "*** Titled Tuesday Blitz"]
[Site "Chess.com"]
[Date "2018.05.01"]
[Round "6"]
[White "Alzhur"]
[Black "RojonR"]
[Result "0-1"]
[WhiteElo "2471"]
[BlackElo "2397"]
[TimeControl "180+2"]
[EndTime "14:19:54 PDT"]
[Termination "RojonR won by checkmate"]

1. e4 {[%clk 0:02:59.3]} 1... c5 {[%clk 0:03:00.3]} 2. c3 {[%clk 0:02:59]} 2...
Nf6 {[%clk 0:02:58.9]} 3. e5 {[%clk 0:02:59]} 3... Nd5 {[%clk 0:02:59.6]} 4. d4
{[%clk 0:03:00.3]} 4... cxd4 {[%clk 0:02:59.7]} 5. Qxd4 {[%clk 0:03:01.4]} 5...
e6 {[%clk 0:02:58.2]} 6. Bc4 {[%clk 0:03:02.3]} 6... Nc6 {[%clk 0:02:58.3]} 7.
Qe4 {[%clk 0:03:02.8]} 7... Nb6 {[%clk 0:02:54.4]} 8. Bb3 {[%clk 0:03:03.6]}
8... d5 {[%clk 0:02:50.8]} 9. exd6 {[%clk 0:03:03.2]} 9... Bxd6 {[%clk 0:02:49]}
10. Nf3 {[%clk 0:03:04.2]} 10... O-O {[%clk 0:02:45.8]} 11. O-O {[%clk
0:03:05.3]} 11... h6 {[%clk 0:02:46.5]} 12. Rd1 {[%clk 0:03:04]} 12... Qc7
{[%clk 0:02:43.4]} 13. a4 {[%clk 0:03:01.2]} 13... Na5 {[%clk 0:02:30.8]} 14.
Bc2 {[%clk 0:03:00.3]} 14... f5 {[%clk 0:02:31.1]} 15. Qe2 {[%clk 0:03:00]}
15... Nac4 {[%clk 0:01:39.7]} 16. Nbd2 {[%clk 0:02:58.4]} 16... Nxd2 {[%clk
0:01:38.8]} 17. Bxd2 {[%clk 0:02:57.9]} 17... Bd7 {[%clk 0:01:20.5]} 18. Bb3
{[%clk 0:02:39.4]} 18... Rae8 {[%clk 0:01:15.9]} 19. h3 {[%clk 0:02:36.4]} 19...
Kh7 {[%clk 0:01:10.3]} 20. Nd4 {[%clk 0:02:34.9]} 20... e5 {[%clk 0:01:05.6]}
21. Nb5 {[%clk 0:02:34.6]} 21... Bxb5 {[%clk 0:01:05.7]} 22. Qxb5 {[%clk
0:02:34.7]} 22... a6 {[%clk 0:00:58.7]} 23. Qa5 {[%clk 0:02:30.6]} 23... f4
{[%clk 0:00:54]} 24. Be1 {[%clk 0:02:25.7]} 24... e4 {[%clk 0:00:43.4]} 25. Qh5
{[%clk 0:02:18.1]} 25... f3 {[%clk 0:00:32.3]} 26. g3 {[%clk 0:02:00.2]} 26...
Re5 {[%clk 0:00:25.5]} 27. Qg4 {[%clk 0:01:52.7]} 27... h5 {[%clk 0:00:26.3]}
28. Qf4 {[%clk 0:01:33.4]} 28... Rxf4 {[%clk 0:00:25]} 29. gxf4 {[%clk
0:01:34.6]} 29... Rf5 {[%clk 0:00:25.3]} 30. Bd2 {[%clk 0:01:33.2]} 30... Bxf4
{[%clk 0:00:23.6]} 31. Bxf4 {[%clk 0:01:32.3]} 31... Qxf4 {[%clk 0:00:23.6]} 32.
Bc2 {[%clk 0:01:32.9]} 32... Rg5+ {[%clk 0:00:21.6]} 33. Kh1 {[%clk 0:01:33.8]}
33... Qh4 {[%clk 0:00:22]} 34. Rg1 {[%clk 0:01:33.7]} 34... Qxh3# {[%clk
0:00:22.4]} 0-1

[Event "*** Titled Tuesday Blitz"]
[Site "Chess.com"]
[Date "2018.05.01"]
[Round "6"]
[White "Sven_Tica"]
[Black "Alexander_Donchenko"]
[Result "1-0"]
[WhiteElo "2647"]
[BlackElo "2660"]
[TimeControl "180+2"]
[EndTime "14:19:57 PDT"]
[Termination "Sven_Tica won by resignation"]

1. d4 {[%clk 0:03:01.9]} 1... Nf6 {[%clk 0:03:00.4]} 2. c4 {[%clk 0:03:02.7]}
2... e6 {[%clk 0:03:01.7]} 3. g3 {[%clk 0:03:03.7]} 3... c5 {[%clk 0:03:02.7]}
4. d5 {[%clk 0:03:04.7]} 4... exd5 {[%clk 0:03:03.3]} 5. cxd5 {[%clk 0:03:06.6]}
5... d6 {[%clk 0:03:04.9]} 6. Nc3 {[%clk 0:03:08.3]} 6... g6 {[%clk 0:03:06.6]}
7. Bg2 {[%clk 0:03:09.9]} 7... Bg7 {[%clk 0:03:08.2]} 8. Nf3 {[%clk 0:03:11.8]}
8... O-O {[%clk 0:03:09.7]} 9. O-O {[%clk 0:03:13.7]} 9... Re8 {[%clk
0:03:11.3]} 10. Bf4 {[%clk 0:03:15.3]} 10... Bf5 {[%clk 0:03:11.8]} 11. Nh4
{[%clk 0:03:15.8]} 11... Bg4 {[%clk 0:03:13.2]} 12. Qd2 {[%clk 0:03:14.3]} 12...
Na6 {[%clk 0:03:08.9]} 13. e4 {[%clk 0:03:02.1]} 13... c4 {[%clk 0:03:08.1]} 14.
Be3 {[%clk 0:02:55]} 14... b5 {[%clk 0:03:04.7]} 15. Nxb5 {[%clk 0:02:46.6]}
15... Nxe4 {[%clk 0:03:04.6]} 16. Bxe4 {[%clk 0:02:47.8]} 16... Rxe4 {[%clk
0:03:06.1]} 17. f3 {[%clk 0:02:49.3]} 17... Rxe3 {[%clk 0:02:58.3]} 18. Qxe3
{[%clk 0:02:49.2]} 18... Bd7 {[%clk 0:02:54.4]} 19. Nc3 {[%clk 0:02:48.4]} 19...
Nc5 {[%clk 0:02:44.2]} 20. Ne4 {[%clk 0:02:21.3]} 20... Nxe4 {[%clk 0:02:34.5]}
21. fxe4 {[%clk 0:02:20.9]} 21... Bxb2 {[%clk 0:02:35]} 22. Rab1 {[%clk
0:02:22]} 22... c3 {[%clk 0:02:16.3]} 23. Rf2 {[%clk 0:02:21.6]} 23... Rc8
{[%clk 0:02:11.2]} 24. Rfxb2 {[%clk 0:02:11.1]} 24... cxb2 {[%clk 0:02:11.8]}
25. Rxb2 {[%clk 0:02:13]} 25... Qf6 {[%clk 0:02:10.7]} 26. Rf2 {[%clk
0:02:03.3]} 26... Qa1+ {[%clk 0:01:59.4]} 27. Kg2 {[%clk 0:02:03.1]} 27... Rc1
{[%clk 0:01:55.9]} 28. Nf3 {[%clk 0:01:43.2]} 28... Bb5 {[%clk 0:01:10.4]} 29.
g4 {[%clk 0:01:28.1]} 29... Bd7 {[%clk 0:00:41.1]} 30. Kg3 {[%clk 0:01:14.7]}
30... Qf6 {[%clk 0:00:38.5]} 31. Qxc1 {[%clk 0:01:12.4]} 31... h5 {[%clk
0:00:34]} 32. Qg5 {[%clk 0:01:08.4]} 32... h4+ {[%clk 0:00:30.9]} 33. Kxh4
{[%clk 0:01:01.8]} 1-0

[Event "*** Titled Tuesday Blitz"]
[Site "Chess.com"]
[Date "2018.05.01"]
[Round "6"]
[White "ChainsOfFantasia"]
[Black "Last7Samurai"]
[Result "0-1"]
[WhiteElo "2423"]
[BlackElo "2647"]
[TimeControl "180+2"]
[EndTime "14:20:07 PDT"]
[Termination "Last7Samurai won by resignation"]

1. d4 {[%clk 0:03:01.9]} 1... d5 {[%clk 0:03:00.4]} 2. Nf3 {[%clk 0:03:02.5]}
2... Nf6 {[%clk 0:03:01.2]} 3. c4 {[%clk 0:03:03.9]} 3... c6 {[%clk 0:03:02]} 4.
Nc3 {[%clk 0:03:05.1]} 4... e6 {[%clk 0:03:02.8]} 5. e3 {[%clk 0:03:06.4]} 5...
Nbd7 {[%clk 0:03:03.3]} 6. Qc2 {[%clk 0:03:07.8]} 6... Bd6 {[%clk 0:03:03.9]} 7.
Bd3 {[%clk 0:03:09.3]} 7... O-O {[%clk 0:03:02.8]} 8. O-O {[%clk 0:03:09.9]}
8... e5 {[%clk 0:03:03.4]} 9. cxd5 {[%clk 0:03:08.9]} 9... cxd5 {[%clk
0:03:05.3]} 10. Nb5 {[%clk 0:02:59.4]} 10... Bb8 {[%clk 0:03:05]} 11. dxe5
{[%clk 0:02:58.6]} 11... Nxe5 {[%clk 0:03:06.9]} 12. Nxe5 {[%clk 0:02:56.5]}
12... Bxe5 {[%clk 0:03:08.8]} 13. Nd4 {[%clk 0:02:54.3]} 13... Bd7 {[%clk
0:03:04.8]} 14. Nf3 {[%clk 0:02:47]} 14... Rc8 {[%clk 0:03:02.6]} 15. Qe2 {[%clk
0:02:47.2]} 15... Bb8 {[%clk 0:03:02.8]} 16. h3 {[%clk 0:02:48]} 16... Ne4
{[%clk 0:02:58.4]} 17. Bd2 {[%clk 0:02:49]} 17... Qf6 {[%clk 0:02:58.1]} 18. Bb4
{[%clk 0:02:46.1]} 18... Rfe8 {[%clk 0:02:56.2]} 19. Rac1 {[%clk 0:02:46.4]}
19... a6 {[%clk 0:02:20.8]} 20. Rfd1 {[%clk 0:02:36]} 20... Bc6 {[%clk 0:02:19]}
21. Nd4 {[%clk 0:01:57.5]} 21... Qe5 {[%clk 0:01:49.6]} 22. f4 {[%clk
0:01:53.7]} 22... Qf6 {[%clk 0:01:49.1]} 23. Nxc6 {[%clk 0:01:31.2]} 23... Rxc6
{[%clk 0:01:51]} 24. Bxe4 {[%clk 0:01:29.8]} 24... Rxe4 {[%clk 0:01:46.8]} 25.
Rxc6 {[%clk 0:01:29.2]} 25... Qxc6 {[%clk 0:01:48.7]} 26. Bc3 {[%clk 0:01:21.9]}
26... Bxf4 {[%clk 0:01:45.2]} 27. Bd4 {[%clk 0:01:20.6]} 27... Qe6 {[%clk
0:01:38.5]} 28. Kf2 {[%clk 0:01:10.6]} 28... h6 {[%clk 0:01:16.4]} 29. Qf3
{[%clk 0:01:08.6]} 29... Be5 {[%clk 0:01:04]} 30. Bxe5 {[%clk 0:01:02.2]} 30...
Qxe5 {[%clk 0:01:05.9]} 31. Rd2 {[%clk 0:01:03.6]} 31... g6 {[%clk 0:01:01.1]}
32. a3 {[%clk 0:01:00.1]} 32... Kg7 {[%clk 0:01:02.2]} 33. Re2 {[%clk 0:01:00]}
33... d4 {[%clk 0:00:59.6]} 34. exd4 {[%clk 0:00:59]} 34... Qxd4+ {[%clk
0:01:00.4]} 35. Kg3 {[%clk 0:00:51.7]} 35... Qe5+ {[%clk 0:01:00.6]} 36. Kf2
{[%clk 0:00:52.4]} 36... Rxe2+ {[%clk 0:01:01.3]} 37. Qxe2 {[%clk 0:00:54.3]}
37... Qxe2+ {[%clk 0:01:02.5]} 38. Kxe2 {[%clk 0:00:56.2]} 38... Kf6 {[%clk
0:01:03.9]} 39. Ke3 {[%clk 0:00:57.4]} 39... Ke5 {[%clk 0:01:05.1]} 40. Kd3
{[%clk 0:00:58.7]} 40... Kf4 {[%clk 0:01:05.4]} 41. Kc4 {[%clk 0:00:59.3]} 41...
Kg3 {[%clk 0:01:06.4]} 42. Kc5 {[%clk 0:01:01.2]} 42... Kxg2 {[%clk 0:01:07.6]}
43. Kb6 {[%clk 0:01:03]} 43... f5 {[%clk 0:01:09.2]} 44. Kxb7 {[%clk 0:01:04.8]}
44... f4 {[%clk 0:01:10.2]} 45. b4 {[%clk 0:01:06.7]} 45... f3 {[%clk
0:01:11.1]} 46. b5 {[%clk 0:01:07.8]} 46... axb5 {[%clk 0:01:11.2]} 0-1

[Event "*** Titled Tuesday Blitz"]
[Site "Chess.com"]
[Date "2018.05.01"]
[Round "6"]
[White "rubhani"]
[Black "GP9isback23"]
[Result "1-0"]
[WhiteElo "2426"]
[BlackElo "2260"]
[TimeControl "180+2"]
[EndTime "14:20:23 PDT"]
[Termination "rubhani won by resignation"]

1. e4 {[%clk 0:03:01.9]} 1... c6 {[%clk 0:02:56.3]} 2. d4 {[%clk 0:03:02.4]}
2... d5 {[%clk 0:02:53.1]} 3. e5 {[%clk 0:03:03.7]} 3... c5 {[%clk 0:02:50.3]}
4. dxc5 {[%clk 0:03:02.5]} 4... Nc6 {[%clk 0:02:49.9]} 5. Nf3 {[%clk 0:03:03.1]}
5... e6 {[%clk 0:02:47.6]} 6. Be3 {[%clk 0:03:00.3]} 6... Nge7 {[%clk
0:02:48.3]} 7. Bd3 {[%clk 0:02:56.3]} 7... Ng6 {[%clk 0:02:30.9]} 8. Bxg6 {[%clk
0:02:10.8]} 8... hxg6 {[%clk 0:02:29.7]} 9. O-O {[%clk 0:02:11.5]} 9... Qc7
{[%clk 0:02:05.2]} 10. Nc3 {[%clk 0:02:05]} 10... Nxe5 {[%clk 0:01:58]} 11. Nxe5
{[%clk 0:02:00.4]} 11... Qxe5 {[%clk 0:01:57]} 12. h3 {[%clk 0:02:01.3]} 12...
Bd7 {[%clk 0:01:53.6]} 13. Re1 {[%clk 0:02:01.8]} 13... Qh5 {[%clk 0:01:28.4]}
14. Qd4 {[%clk 0:01:12.2]} 14... f6 {[%clk 0:01:00.1]} 15. a4 {[%clk 0:00:48.4]}
15... Kf7 {[%clk 0:00:51.7]} 16. Nb5 {[%clk 0:00:47.4]} 16... g5 {[%clk
0:00:45.3]} 17. c4 {[%clk 0:00:37]} 17... Bc6 {[%clk 0:00:42.3]} 18. cxd5 {[%clk
0:00:34.4]} 18... Bxd5 {[%clk 0:00:41.8]} 19. Nc7 {[%clk 0:00:20.2]} 19... Bxg2
{[%clk 0:00:33.9]} 20. Qd7+ {[%clk 0:00:16.1]} 20... Kg6 {[%clk 0:00:26.4]} 21.
Qxe6 {[%clk 0:00:16.3]} 21... Bxh3 {[%clk 0:00:23.6]} 22. Qe4+ {[%clk
0:00:17.1]} 22... Bf5 {[%clk 0:00:22.5]} 23. Qg2 {[%clk 0:00:18.1]} 23... Rc8
{[%clk 0:00:19.6]} 24. Nd5 {[%clk 0:00:18.9]} 24... Bxc5 {[%clk 0:00:19.2]} 25.
Nf4+ {[%clk 0:00:19.7]} 1-0

[Event "*** Titled Tuesday Blitz"]
[Site "Chess.com"]
[Date "2018.05.01"]
[Round "6"]
[White "Keaton87"]
[Black "dretch"]
[Result "0-1"]
[WhiteElo "2449"]
[BlackElo "2705"]
[TimeControl "180+2"]
[EndTime "14:20:26 PDT"]
[Termination "dretch won by resignation"]

1. d4 {[%clk 0:03:01.9]} 1... d5 {[%clk 0:03:00.9]} 2. Nf3 {[%clk 0:03:01.5]}
2... Nf6 {[%clk 0:03:01.8]} 3. Bf4 {[%clk 0:03:02]} 3... c5 {[%clk 0:03:02.4]}
4. e3 {[%clk 0:03:03.2]} 4... Nc6 {[%clk 0:03:02.3]} 5. Be2 {[%clk 0:03:04.4]}
5... Bg4 {[%clk 0:02:52.2]} 6. O-O {[%clk 0:03:02.7]} 6... e6 {[%clk 0:02:53.3]}
7. c3 {[%clk 0:03:01]} 7... Bd6 {[%clk 0:02:52.2]} 8. Bxd6 {[%clk 0:02:58.9]}
8... Qxd6 {[%clk 0:02:53.4]} 9. Nbd2 {[%clk 0:02:56.7]} 9... O-O {[%clk
0:02:52]} 10. dxc5 {[%clk 0:02:46.2]} 10... Qxc5 {[%clk 0:02:52.6]} 11. Qa4
{[%clk 0:02:25.6]} 11... Rfd8 {[%clk 0:02:46.3]} 12. Rac1 {[%clk 0:02:12.5]}
12... Qb6 {[%clk 0:02:39]} 13. Qb3 {[%clk 0:02:11.3]} 13... Qc7 {[%clk
0:02:39.2]} 14. c4 {[%clk 0:02:07.2]} 14... d4 {[%clk 0:02:40.5]} 15. exd4
{[%clk 0:01:58]} 15... Rxd4 {[%clk 0:02:41.1]} 16. Qe3 {[%clk 0:01:49.2]} 16...
e5 {[%clk 0:02:23.7]} 17. Rfe1 {[%clk 0:01:30.5]} 17... Rd7 {[%clk 0:01:54.9]}
18. h3 {[%clk 0:01:23.4]} 18... Bf5 {[%clk 0:01:53.5]} 19. Nb3 {[%clk
0:01:19.5]} 19... Rad8 {[%clk 0:01:45.6]} 20. Red1 {[%clk 0:01:14.5]} 20... h6
{[%clk 0:01:41.3]} 21. Rxd7 {[%clk 0:01:14.6]} 21... Rxd7 {[%clk 0:01:42.5]} 22.
Rd1 {[%clk 0:01:15]} 22... Re7 {[%clk 0:01:15]} 23. c5 {[%clk 0:01:07.8]} 23...
Be6 {[%clk 0:01:12.5]} 24. Nfd2 {[%clk 0:01:01.2]} 24... Nd5 {[%clk 0:01:11.1]}
25. Qg3 {[%clk 0:00:57.8]} 25... Nf4 {[%clk 0:01:10]} 26. Bf1 {[%clk 0:00:59.2]}
26... Rd7 {[%clk 0:01:08.5]} 27. Qe3 {[%clk 0:00:55.6]} 27... Nb4 {[%clk
0:01:06.9]} 28. Re1 {[%clk 0:00:50.5]} 28... Nc2 {[%clk 0:01:05.7]} 29. Qxe5
{[%clk 0:00:50.4]} 29... Nxe1 {[%clk 0:01:06.9]} 30. Qxe1 {[%clk 0:00:51.3]}
30... Re7 {[%clk 0:01:01]} 31. Qc1 {[%clk 0:00:47.9]} 31... Bd5 {[%clk
0:01:00.2]} 32. Nd4 {[%clk 0:00:38.9]} 32... Qe5 {[%clk 0:00:52.5]} 33. N4f3
{[%clk 0:00:38.3]} 33... Qf6 {[%clk 0:00:51.3]} 34. g3 {[%clk 0:00:16.6]} 34...
Ne2+ {[%clk 0:00:49.7]} 35. Bxe2 {[%clk 0:00:17.3]} 35... Rxe2 {[%clk
0:00:51.6]} 0-1

[Event "*** Titled Tuesday Blitz"]
[Site "Chess.com"]
[Date "2018.05.01"]
[Round "6"]
[White "Too_Stupid_To_Play"]
[Black "GoingKronos"]
[Result "0-1"]
[WhiteElo "2179"]
[BlackElo "2368"]
[TimeControl "180+2"]
[EndTime "14:20:26 PDT"]
[Termination "GoingKronos won by resignation"]

1. d4 {[%clk 0:03:01.9]} 1... Nf6 {[%clk 0:02:59.8]} 2. Nc3 {[%clk 0:03:02.4]}
2... d5 {[%clk 0:03:00.2]} 3. Bf4 {[%clk 0:03:03.6]} 3... c5 {[%clk 0:02:53.1]}
4. e3 {[%clk 0:03:04.2]} 4... cxd4 {[%clk 0:02:51.7]} 5. exd4 {[%clk 0:03:04.9]}
5... a6 {[%clk 0:02:52.5]} 6. Nf3 {[%clk 0:03:05.3]} 6... Nc6 {[%clk 0:02:53]}
7. Be2 {[%clk 0:03:02.7]} 7... Bg4 {[%clk 0:02:52.4]} 8. Ne5 {[%clk 0:02:46.9]}
8... Bxe2 {[%clk 0:02:52.4]} 9. Nxc6 {[%clk 0:02:48]} 9... Bxd1 {[%clk
0:02:22.3]} 10. Nxd8 {[%clk 0:02:48.8]} 10... Bxc2 {[%clk 0:02:23.4]} 11. Nxb7
{[%clk 0:02:49.5]} 11... e6 {[%clk 0:02:21.9]} 12. Rc1 {[%clk 0:02:44.3]} 12...
Bg6 {[%clk 0:02:22.5]} 13. Nd6+ {[%clk 0:02:16.8]} 13... Kd7 {[%clk 0:02:10]}
14. Nb7 {[%clk 0:02:14.2]} 14... Rc8 {[%clk 0:02:01.4]} 15. a3 {[%clk
0:01:16.3]} 15... Ne4 {[%clk 0:01:40.5]} 16. Nxe4 {[%clk 0:01:08.3]} 16... Rxc1+
{[%clk 0:01:41]} 17. Bxc1 {[%clk 0:01:08.8]} 17... Bxe4 {[%clk 0:01:42.2]} 18.
f3 {[%clk 0:00:59.4]} 18... Bg6 {[%clk 0:01:41.9]} 19. b4 {[%clk 0:00:52.5]}
19... Kc6 {[%clk 0:01:35.3]} 20. Nc5 {[%clk 0:00:40.7]} 20... Bxc5 {[%clk
0:01:36.1]} 21. bxc5 {[%clk 0:00:30.9]} 21... Rb8 {[%clk 0:01:34.5]} 22. Kd2
{[%clk 0:00:24.6]} 22... Rb3 {[%clk 0:01:35]} 23. Rd1 {[%clk 0:00:23.9]} 23...
f6 {[%clk 0:01:27.7]} 24. Ke2 {[%clk 0:00:19.4]} 24... e5 {[%clk 0:01:28.5]} 25.
dxe5 {[%clk 0:00:14]} 25... fxe5 {[%clk 0:01:30.4]} 26. Kf2 {[%clk 0:00:07.9]}
26... Kxc5 {[%clk 0:01:26.1]} 27. Re1 {[%clk 0:00:09.2]} 27... Kd6 {[%clk
0:01:23.7]} 28. Bd2 {[%clk 0:00:09.3]} 28... d4 {[%clk 0:01:15.1]} 29. Bb4+
{[%clk 0:00:09.6]} 29... Kd5 {[%clk 0:01:16.4]} 30. Rc1 {[%clk 0:00:10.5]} 30...
Rb2+ {[%clk 0:01:14.9]} 31. Kg3 {[%clk 0:00:09.8]} 31... Bc2 {[%clk 0:01:14.5]}
32. Bf8 {[%clk 0:00:05.9]} 32... g6 {[%clk 0:01:15.1]} 33. h4 {[%clk 0:00:07.1]}
33... d3 {[%clk 0:01:12.5]} 34. Bb4 {[%clk 0:00:08.1]} 34... Rxb4 {[%clk
0:01:10.7]} 35. axb4 {[%clk 0:00:09.5]} 35... d2 {[%clk 0:01:11.8]} 0-1